[Event "European Online Club-ch-D 2021"]
[Site "Online"]
[Date "2021.03.27"]
[Round "1.4"]
[White "Erdogmus, Yagiz Kaan"]
[Black "Cheparinov, Ivan"]
[Result "0-1"]
[ECO "B51"]
[WhiteElo "1955"]
[BlackElo "2667"]
[Annotator "RC"]
[PlyCount "110"]
[EventDate "2021.03.27"]
[EventType "team-tourn"]
[EventCountry "NET"]
[SourceTitle "playchess.com"]
[Source "ChessBase"]
[SourceQuality "1"]
[TimeControl "900+5"]

1. e4 {[%emt 0:00:00]} c5 {[%emt 0:00:05]} 2. Nf3 {[%emt 0:00:03]} d6 {[%emt 0:00:06]} 3. Bb5+ {[%emt 0:00:05]} Nd7 {[%emt 0:00:01]} 4. d4 {[%emt 0:00:02]} cxd4 {[%emt 0:00:02]} 5. Qxd4 {[%emt 0:00:03]} a6 {[%emt 0:00:01]} 6. Bxd7+ {[%emt 0:00:05]} Qxd7 {[%emt 0:00:01]} 7. O-O {[%emt 0:00:04]} e5 {[%emt 0:00:27]} 8. Qd3 {[%emt 0:00:09]} Qc6 {[%emt 0:00:04]} 9. c4 {[%emt 0:00:42]} Be6 {[%emt 0:00:12]} 10. b3 {[%emt 0:00:17]} b5 {[%emt 0:00:12]} 11. cxb5 {[%emt 0:00:29]} Qxb5 {[%emt 0:00:23]} 12. Rd1 {[%emt 0:01:08]} Nf6 {[%emt 0:00:20]} 13. Nc3 {[%emt 0:00:13]} Qxd3 {[%emt 0:00:32]} 14. Rxd3 {[%emt 0:00:03]} Rc8 {[%emt 0:01:24]} 15. Ba3 {[%emt 0:00:30]} d5 {[%emt 0:00:46]} 16. Bxf8 {[%emt 0:01:34]} Kxf8 {[%emt 0:00:06]} 17. Nxe5 {[%emt 0:01:54]} dxe4 {[%emt 0:00:04]} 18. Re3 {[%emt 0:00:04]} Rc5 {[%emt 0:00:24]} 19. f4 {[%emt 0:00:10]} exf3 {[%emt 0:01:01]} 20. Nxf3 {[%emt 0:00:04]} Ng4 {[%emt 0:03:02]} 21. Rd3 {[%emt 0:00:49]} Ke7 {[%emt 0:00:02]} 22. Re1 {[%emt 0:00:52]} Rhc8 {[%emt 0:00:30]} 23. Ne4 {[%emt 0:01:34]} Rc1 {[%emt 0:00:11]} 24. h3 {[%emt 0:02:41]} Ne5 {[%emt 0:01:08]} 25. Rde3 {[%emt 0:00:15]} Nxf3+ {[%emt 0:00:07]} 26. gxf3 {[%emt 0:00:03]} Rxe1+ {[%emt 0:00:01]} 27. Rxe1 {[%emt 0:00:02]} Rc2 {[%emt 0:00:04]} 28. a4 {[%emt 0:00:41]} Bxh3 {[%emt 0:02:13]} 29. Nc5+ {[%emt 0:00:35]} Kd6 {[%emt 0:00:47]} 30. Nxa6 {[%emt 0:00:08]} Rg2+ {[%emt 0:00:10]} 31. Kh1 {[%emt 0:00:07]} Rb2 {[%emt 0:00:15]} 32. Re3 {[%emt 0:01:18]} h5 {[%emt 0:00:24]} 33. Rd3+ {[%emt 0:00:08]} Ke7 {[%emt 0:00:21]} 34. Nc5 {[%emt 0:00:29]} h4 {[%emt 0:00:08]} 35. a5 {[%emt 0:00:18]} Bg2+ {[%emt 0:00:32]} 36. Kg1 {[%emt 0:00:01]} h3 {[%emt 0:00:01]} 37. Re3+ {[%emt 0:00:10]} Kd6 {[%emt 0:00:07]} 38. Ne4+ {[%emt 0:00:01]} Ke5 {[%emt 0:00:04]} 39. Nf2+ {[%emt 0:00:14]} Kf5 {[%emt 0:00:57]} 40. Rc3 {[%emt 0:00:06]} Ra2 {[%emt 0:00:23]} 41. b4 {[%emt 0:00:03]} Kf4 {[%emt 0:00:07]} 42. Rc4+ {[%emt 0:00:08]} Kg3 {[%emt 0:00:10]} 43. Ne4+ {[%emt 0:00:06]} Kxf3 {[%emt 0:00:01]} 44. Ng5+ {[%emt 0:00:01]} Kg3 {[%emt 0:00:05]} 45. Rc3+ {[%emt 0:00:07]} Kg4 {[%emt 0:00:12]} 46. Nxf7 {[%emt 0:00:04]} Ra1+ {[%emt 0:00:13]} 47. Kf2 {[%emt 0:00:01]} Rf1+ {[%emt 0:00:01]} 48. Ke3 {[%emt 0:00:02]} Rxf7 {[%emt 0:00:02]} 49. Rc4+ {[%emt 0:00:06]} Kg3 {[%emt 0:00:02]} 50. Rc5 {[%emt 0:00:02]} Rf3+ {[%emt 0:00:09]} 51. Ke2 {[%emt 0:00:02]} Rf4 {[%emt 0:00:09]} 52. Rc3+ {[%emt 0:00:09]} Bf3+ {[%emt 0:00:03]} 53. Ke3 {[%emt 0:00:02]} h2 {[%emt 0:00:01]} 54. Rc7 {[%emt 0:00:04]} h1=Q {[%emt 0:00:05]} 55. Rxg7+ {[%emt 0:00:01]} Bg4 {[%emt 0:00:00]} 0-1

[Event "European Online Club-ch-D 2021"]
[Site "Online"]
[Date "2021.03.27"]
[Round "1.5"]
[White "Lagarde, Maxime"]
[Black "Lopez Del Alamo, Antonio"]
[Result "0-1"]
[ECO "E70"]
[WhiteElo "2640"]
[BlackElo "2295"]
[Annotator "ChessBase"]
[PlyCount "94"]
[EventDate "2021.03.27"]
[EventType "team-tourn"]
[EventCountry "NET"]
[SourceTitle "playchess.com"]
[Source "ChessBase"]
[SourceQuality "1"]
[TimeControl "900+5"]

1. c4 {[%emt 0:00:00]} Nf6 {[%emt 0:00:10]} 2. Nc3 {[%emt 0:00:04]} g6 {[%emt 0:00:16]} 3. d4 {[%emt 0:00:11]} Bg7 {[%emt 0:00:02]} 4. e4 {[%emt 0:00:09]} d6 {[%emt 0:00:03]} 5. Nge2 {[%emt 0:00:06]} O-O {[%emt 0:00:26]} 6. Ng3 {[%emt 0:00:04]} c5 {[%emt 0:00:31]} 7. d5 {[%emt 0:00:15]} e6 {[%emt 0:00:27]} 8. Be2 {[%emt 0:00:08]} exd5 {[%emt 0:00:10]} 9. exd5 {[%emt 0:00:00]} a6 {[%emt 0:00:54]} 10. Bg5 {[%emt 0:02:46]} h6 {[%emt 0:00:34]} 11. Bf4 {[%emt 0:00:03]} Re8 {[%emt 0:00:19]} 12. O-O {[%emt 0:00:46]} Bf8 {[%emt 0:01:12]} 13. Qd2 {[%emt 0:00:07]} Kh7 {[%emt 0:00:03]} 14. Bd3 {[%emt 0:00:24]} Nbd7 {[%emt 0:00:13]} 15. Rae1 {[%emt 0:00:47]} Ne5 {[%emt 0:00:30]} 16. Bxe5 {[%emt 0:00:22]} dxe5 {[%emt 0:00:09]} 17. f4 {[%emt 0:00:40]} Bd6 {[%emt 0:00:20]} 18. f5 {[%emt 0:02:59]} g5 {[%emt 0:00:37]} 19. Nce4 {[%emt 0:00:28]} Kg7 {[%emt 0:04:22]} 20. h4 {[%emt 0:02:08]} Nxe4 {[%emt 0:00:57]} 21. Nxe4 {[%emt 0:00:00]} f6 {[%emt 0:00:07]} 22. hxg5 {[%emt 0:00:01]} hxg5 {[%emt 0:00:04]} 23. Nxg5 {[%emt 0:00:12]} Rh8 {[%emt 0:00:33]} 24. Ne6+ {[%emt 0:00:15]} Bxe6 {[%emt 0:00:04]} 25. fxe6 {[%emt 0:00:00]} Qe7 {[%emt 0:00:59]} 26. Re4 {[%emt 0:00:16]} Rag8 {[%emt 0:00:04]} 27. Rg4+ {[%emt 0:00:02]} Kf8 {[%emt 0:00:01]} 28. Rxg8+ {[%emt 0:00:02]} Kxg8 {[%emt 0:00:20]} 29. Rf3 {[%emt 0:00:37]} Qg7 {[%emt 0:00:45]} 30. Qa5 {[%emt 0:00:28]} e4 {[%emt 0:00:56]} 31. Qd8+ {[%emt 0:00:14]} Bf8 {[%emt 0:00:06]} 32. Bxe4 {[%emt 0:01:46]} f5 {[%emt 0:00:03]} 33. Rf2 {[%emt 0:00:16]} Qh6 {[%emt 0:00:32]} 34. Kf1 {[%emt 0:00:28]} Qc1+ {[%emt 0:00:23]} 35. Ke2 {[%emt 0:00:12]} Qxb2+ {[%emt 0:00:03]} 36. Bc2 {[%emt 0:00:36]} Qxc2+ {[%emt 0:00:07]} 37. Ke3 {[%emt 0:00:01]} Qc3+ {[%emt 0:00:27]} 38. Ke2 {[%emt 0:00:06]} Qxc4+ {[%emt 0:00:03]} 39. Kd2 {[%emt 0:00:01]} Qxa2+ {[%emt 0:00:06]} 40. Ke3 {[%emt 0:00:03]} Qb3+ {[%emt 0:00:08]} 41. Kd2 {[%emt 0:00:11]} Qb2+ {[%emt 0:00:09]} 42. Ke3 {[%emt 0:00:03]} Qe5+ {[%emt 0:00:02]} 43. Kd2 {[%emt 0:00:02]} Rh7 {[%emt 0:00:06]} 44. Re2 {[%emt 0:00:13]} Qf4+ {[%emt 0:00:07]} 45. Kc2 {[%emt 0:00:03]} Rh1 {[%emt 0:00:02]} 46. e7 {[%emt 0:00:06]} Qc4+ {[%emt 0:00:07]} 47. Kd2 {[%emt 0:00:03]} Qc1+ {[%emt 0:00:06]} 0-1

[Event "European Online Club-ch-D 2021"]
[Site "Online"]
[Date "2021.03.27"]
[Round "1.6"]
[White "Gongora Montes, Benjamin"]
[Black "Maurizzi, Marc Andria"]
[Result "0-1"]
[ECO "A40"]
[WhiteElo "2198"]
[BlackElo "2461"]
[Annotator "ChessBase"]
[PlyCount "106"]
[EventDate "2021.03.27"]
[EventType "team-tourn"]
[EventCountry "NET"]
[SourceTitle "playchess.com"]
[Source "ChessBase"]
[SourceQuality "1"]
[TimeControl "900+5"]

1. d4 {[%emt 0:00:00]} g6 {[%emt 0:01:18]} 2. h4 {[%emt 0:00:13]} Nf6 {[%emt 0:00:17]} 3. Nc3 {[%emt 0:00:06]} d5 {[%emt 0:00:09]} 4. Nf3 {[%emt 0:00:15]} Bg7 {[%emt 0:00:32]} 5. Bg5 {[%emt 0:00:24]} Ne4 {[%emt 0:00:19]} 6. Bf4 {[%emt 0:00:10]} c5 {[%emt 0:01:35]} 7. e3 {[%emt 0:01:41]} Qa5 {[%emt 0:00:59]} 8. Bb5+ {[%emt 0:00:09]} Nc6 {[%emt 0:00:08]} 9. Ne5 {[%emt 0:01:29]} Nxc3 {[%emt 0:02:20]} 10. Bxc6+ {[%emt 0:00:06]} bxc6 {[%emt 0:00:03]} 11. Qd2 {[%emt 0:00:02]} f6 {[%emt 0:01:15]} 12. Nd3 {[%emt 0:02:09]} c4 {[%emt 0:00:37]} 13. Nc5 {[%emt 0:00:25]} e5 {[%emt 0:00:02]} 14. Bg3 {[%emt 0:00:13]} Rb8 {[%emt 0:01:30]} 15. Qxc3 {[%emt 0:00:23]} Qxc3+ {[%emt 0:00:04]} 16. bxc3 {[%emt 0:00:03]} Rb2 {[%emt 0:00:06]} 17. Kd2 {[%emt 0:00:24]} Bf5 {[%emt 0:00:04]} 18. Rhc1 {[%emt 0:00:05]} Ke7 {[%emt 0:00:18]} 19. Na4 {[%emt 0:00:06]} Rb5 {[%emt 0:00:04]} 20. Rcb1 {[%emt 0:00:48]} Rhb8 {[%emt 0:00:05]} 21. Kc1 {[%emt 0:01:20]} h5 {[%emt 0:01:07]} 22. Nc5 {[%emt 0:00:30]} Kf7 {[%emt 0:01:50]} 23. a4 {[%emt 0:00:17]} Rxb1+ {[%emt 0:00:14]} 24. Rxb1 {[%emt 0:00:04]} Rxb1+ {[%emt 0:00:02]} 25. Kxb1 {[%emt 0:00:03]} Bf8 {[%emt 0:00:09]} 26. Nb7 {[%emt 0:01:41]} Ke6 {[%emt 0:00:24]} 27. Kb2 {[%emt 0:01:22]} Be7 {[%emt 0:00:47]} 28. f3 {[%emt 0:01:03]} Kd7 {[%emt 0:00:30]} 29. dxe5 {[%emt 0:00:19]} fxe5 {[%emt 0:00:00]} 30. Bxe5 {[%emt 0:00:15]} Bxh4 {[%emt 0:00:02]} 31. Nc5+ {[%emt 0:00:04]} Kc8 {[%emt 0:00:17]} 32. Kc1 {[%emt 0:00:41]} Be7 {[%emt 0:00:07]} 33. Bd4 {[%emt 0:00:13]} g5 {[%emt 0:00:06]} 34. Kd2 {[%emt 0:00:04]} h4 {[%emt 0:00:09]} 35. a5 {[%emt 0:00:22]} g4 {[%emt 0:00:05]} 36. fxg4 {[%emt 0:00:03]} Bxg4 {[%emt 0:00:00]} 37. a6 {[%emt 0:00:12]} Bd6 {[%emt 0:00:10]} 38. Nb7 {[%emt 0:00:15]} Bb8 {[%emt 0:00:02]} 39. Ke1 {[%emt 0:00:09]} Bf5 {[%emt 0:00:06]} 40. Bc5 {[%emt 0:00:07]} Bxc2 {[%emt 0:00:07]} 41. Nd6+ {[%emt 0:00:02]} Kd7 {[%emt 0:00:02]} 42. Nf7 {[%emt 0:00:01]} Be4 {[%emt 0:00:04]} 43. Kf2 {[%emt 0:00:04]} Ke6 {[%emt 0:00:09]} 44. Ng5+ {[%emt 0:00:02]} Kf5 {[%emt 0:00:03]} 45. Nf3 {[%emt 0:00:06]} Kg4 {[%emt 0:00:08]} 46. Nd4 {[%emt 0:00:06]} Bg3+ {[%emt 0:00:14]} 47. Kf1 {[%emt 0:00:05]} Bb8 {[%emt 0:00:05]} 48. Nxc6 {[%emt 0:00:04]} d4 {[%emt 0:00:00]} 49. Nxd4 {[%emt 0:00:05]} Kg3 {[%emt 0:00:03]} 50. Ne2+ {[%emt 0:00:02]} Kh2 {[%emt 0:00:02]} 51. Nf4 {[%emt 0:00:09]} Kg3 {[%emt 0:00:05]} 52. Ne2+ {[%emt 0:00:09]} Kh2 {[%emt 0:00:04]} 53. Nf4 {[%emt 0:00:03]} Kg3 {[%emt 0:00:02]} 0-1

[Event "European Online Club-ch-D 2021"]
[Site "Online"]
[Date "2021.03.27"]
[Round "1.7"]
[White "Medvegy, Zoltan"]
[Black "Pascual Palomo, Lucia"]
[Result "1-0"]
[ECO "C01"]
[WhiteElo "2527"]
[BlackElo "2101"]
[Annotator "ChessBase"]
[PlyCount "53"]
[EventDate "2021.03.27"]
[EventType "team-tourn"]
[EventCountry "NET"]
[SourceTitle "playchess.com"]
[Source "ChessBase"]
[SourceQuality "1"]
[TimeControl "900+5"]

1. e4 {[%emt 0:00:00]} e6 {[%emt 0:00:05]} 2. d4 {[%emt 0:00:05]} d5 {[%emt 0:00:09]} 3. exd5 {[%emt 0:00:02]} exd5 {[%emt 0:00:01]} 4. Nf3 {[%emt 0:00:02]} Bd6 {[%emt 0:00:01]} 5. c4 {[%emt 0:00:04]} Nf6 {[%emt 0:00:06]} 6. Nc3 {[%emt 0:00:06]} c6 {[%emt 0:00:11]} 7. cxd5 {[%emt 0:00:12]} Nxd5 {[%emt 0:00:09]} 8. Bc4 {[%emt 0:00:17]} Nf6 {[%emt 0:01:22]} 9. Qe2+ {[%emt 0:01:30]} Qe7 {[%emt 0:00:28]} 10. Qxe7+ {[%emt 0:00:03]} Bxe7 {[%emt 0:00:02]} 11. O-O {[%emt 0:00:24]} O-O {[%emt 0:00:08]} 12. Re1 {[%emt 0:00:02]} Bb4 {[%emt 0:00:08]} 13. a3 {[%emt 0:00:49]} Ba5 {[%emt 0:00:22]} 14. Bg5 {[%emt 0:00:11]} Nbd7 {[%emt 0:00:24]} 15. Ne5 {[%emt 0:00:38]} Bd8 {[%emt 0:01:09]} 16. Ba2 {[%emt 0:01:02]} h6 {[%emt 0:00:12]} 17. Bh4 {[%emt 0:00:51]} Nb6 {[%emt 0:00:22]} 18. Nxf7 {[%emt 0:02:33]} Nbd5 {[%emt 0:02:46]} 19. Nxd8 {[%emt 0:00:32]} Rxd8 {[%emt 0:00:06]} 20. Nxd5 {[%emt 0:00:13]} cxd5 {[%emt 0:00:09]} 21. Bxf6 {[%emt 0:00:42]} gxf6 {[%emt 0:00:06]} 22. Rac1 {[%emt 0:00:03]} Bf5 {[%emt 0:02:37]} 23. Rc5 {[%emt 0:00:56]} Re8 {[%emt 0:00:34]} 24. Re3 {[%emt 0:00:45]} Rac8 {[%emt 0:01:40]} 25. Bxd5+ {[%emt 0:00:11]} Kh8 {[%emt 0:00:10]} 26. Bxb7 {[%emt 0:00:06]} Rcd8 {[%emt 0:00:58]} 27. Rxf5 {[%emt 0:00:07]} 1-0

[Event "European Online Club-ch-D 2021"]
[Site "Online"]
[Date "2021.03.27"]
[Round "1.8"]
[White "Blasco De La Cruz, Luis"]
[Black "Guliyev, Namig"]
[Result "0-1"]
[ECO "B50"]
[WhiteElo "1902"]
[BlackElo "2538"]
[Annotator "ChessBase"]
[PlyCount "70"]
[EventDate "2021.03.27"]
[EventType "team-tourn"]
[EventCountry "NET"]
[SourceTitle "playchess.com"]
[Source "ChessBase"]
[SourceQuality "1"]
[TimeControl "900+5"]

1. e4 {[%emt 0:00:00]} c5 {[%emt 0:00:12]} 2. Nf3 {[%emt 0:00:37]} d6 {[%emt 0:00:02]} 3. Be2 {[%emt 0:00:15]} Nf6 {[%emt 0:00:03]} 4. d3 {[%emt 0:00:20]} Nc6 {[%emt 0:00:16]} 5. c4 {[%emt 0:00:19]} g6 {[%emt 0:00:06]} 6. Nc3 {[%emt 0:00:05]} Bg7 {[%emt 0:00:04]} 7. h3 {[%emt 0:00:02]} O-O {[%emt 0:00:06]} 8. Be3 {[%emt 0:00:03]} a6 {[%emt 0:00:09]} 9. O-O {[%emt 0:02:13]} e5 {[%emt 0:00:28]} 10. Qd2 {[%emt 0:00:10]} Nh5 {[%emt 0:00:09]} 11. Nh2 {[%emt 0:00:24]} Nf4 {[%emt 0:00:25]} 12. Bxf4 {[%emt 0:01:55]} exf4 {[%emt 0:00:10]} 13. Qxf4 {[%emt 0:00:03]} f5 {[%emt 0:00:03]} 14. Qd2 {[%emt 0:00:19]} f4 {[%emt 0:00:13]} 15. Nd5 {[%emt 0:02:04]} Nd4 {[%emt 0:00:18]} 16. Nf3 {[%emt 0:00:10]} Nxf3+ {[%emt 0:00:56]} 17. Bxf3 {[%emt 0:00:11]} Be5 {[%emt 0:00:02]} 18. Rab1 {[%emt 0:00:52]} a5 {[%emt 0:00:47]} 19. Qe2 {[%emt 0:00:24]} h5 {[%emt 0:00:06]} 20. b3 {[%emt 0:01:24]} Ra7 {[%emt 0:00:54]} 21. Rfc1 {[%emt 0:00:05]} Qh4 {[%emt 0:01:00]} 22. Kf1 {[%emt 0:01:01]} b6 {[%emt 0:00:08]} 23. a4 {[%emt 0:00:07]} Rh7 {[%emt 0:00:09]} 24. Ke1 {[%emt 0:00:12]} g5 {[%emt 0:00:05]} 25. Nxb6 {[%emt 0:00:53]} Be6 {[%emt 0:00:48]} 26. Qf1 {[%emt 0:01:19]} g4 {[%emt 0:00:07]} 27. hxg4 {[%emt 0:00:10]} hxg4 {[%emt 0:00:02]} 28. Bd1 {[%emt 0:00:19]} f3 {[%emt 0:01:09]} 29. g3 {[%emt 0:00:45]} Qh1 {[%emt 0:00:35]} 30. Be2 {[%emt 0:00:24]} fxe2 {[%emt 0:00:08]} 31. Kxe2 {[%emt 0:00:09]} Qf3+ {[%emt 0:00:05]} 32. Kd2 {[%emt 0:00:18]} Qxf2+ {[%emt 0:00:05]} 33. Qxf2 {[%emt 0:00:03]} Rxf2+ {[%emt 0:00:02]} 34. Ke1 {[%emt 0:00:01]} Bd4 {[%emt 0:00:01]} 35. Nd5 {[%emt 0:00:03]} Rh1# {[%emt 0:00:03]} 0-1

[Event "European Online Club-ch-D 2021"]
[Site "Online"]
[Date "2021.03.27"]
[Round "1.10"]
[White "Kvetny, Mark"]
[Black "Parligras, Mircea-Emilian"]
[Result "1/2-1/2"]
[ECO "A17"]
[WhiteElo "2416"]
[BlackElo "2591"]
[Annotator "ChessBase"]
[PlyCount "70"]
[EventDate "2021.03.27"]
[EventType "team-tourn"]
[EventCountry "NET"]
[SourceTitle "playchess.com"]
[Source "ChessBase"]
[SourceQuality "1"]
[TimeControl "900+5"]

1. c4 {[%emt 0:00:00]} e6 {[%emt 0:00:04]} 2. Nf3 {[%emt 0:00:13]} d5 {[%emt 0:00:06]} 3. e3 {[%emt 0:00:02]} Nf6 {[%emt 0:00:22]} 4. Nc3 {[%emt 0:00:10]} dxc4 {[%emt 0:00:28]} 5. Bxc4 {[%emt 0:00:03]} a6 {[%emt 0:00:03]} 6. b3 {[%emt 0:00:51]} b5 {[%emt 0:00:12]} 7. Be2 {[%emt 0:00:02]} c5 {[%emt 0:00:10]} 8. Bb2 {[%emt 0:00:25]} Bb7 {[%emt 0:00:03]} 9. a4 {[%emt 0:00:44]} b4 {[%emt 0:00:04]} 10. Nb1 {[%emt 0:00:02]} Be7 {[%emt 0:01:08]} 11. d3 {[%emt 0:00:20]} O-O {[%emt 0:00:38]} 12. O-O {[%emt 0:00:05]} Nd5 {[%emt 0:00:26]} 13. Qc2 {[%emt 0:00:22]} Nd7 {[%emt 0:00:13]} 14. Nbd2 {[%emt 0:00:18]} Bf6 {[%emt 0:00:11]} 15. Rac1 {[%emt 0:01:21]} Bxb2 {[%emt 0:00:19]} 16. Qxb2 {[%emt 0:00:03]} Nc3 {[%emt 0:00:13]} 17. Nb1 {[%emt 0:00:08]} Nd5 {[%emt 0:00:30]} 18. Rfd1 {[%emt 0:00:41]} Rc8 {[%emt 0:00:13]} 19. Bf1 {[%emt 0:01:52]} Qe7 {[%emt 0:00:28]} 20. e4 {[%emt 0:00:47]} Nf4 {[%emt 0:01:43]} 21. Nbd2 {[%emt 0:00:25]} e5 {[%emt 0:00:30]} 22. Nc4 {[%emt 0:00:24]} f6 {[%emt 0:00:04]} 23. g3 {[%emt 0:00:40]} Ne6 {[%emt 0:00:05]} 24. Bh3 {[%emt 0:00:01]} Rfd8 {[%emt 0:00:56]} 25. Qc2 {[%emt 0:00:46]} Ndf8 {[%emt 0:01:00]} 26. Nb6 {[%emt 0:01:45]} Rc7 {[%emt 0:01:01]} 27. Qc4 {[%emt 0:00:37]} Qd6 {[%emt 0:00:25]} 28. a5 {[%emt 0:00:02]} Kh8 {[%emt 0:00:11]} 29. Bg2 {[%emt 0:00:39]} Nd7 {[%emt 0:01:42]} 30. Nd5 {[%emt 0:00:18]} Rcc8 {[%emt 0:00:47]} 31. Bh3 {[%emt 0:00:26]} Ndf8 {[%emt 0:00:14]} 32. Nb6 {[%emt 0:00:13]} Rc7 {[%emt 0:00:04]} 33. Bg2 {[%emt 0:00:05]} Nd7 {[%emt 0:00:03]} 34. Nd5 {[%emt 0:00:04]} Rcc8 {[%emt 0:00:02]} 35. Bh3 {[%emt 0:00:07]} Ndf8 {[%emt 0:00:03]} 1/2-1/2

[Event "European Online Club-ch-D 2021"]
[Site "Online"]
[Date "2021.03.27"]
[Round "1.11"]
[White "Toma, Radu-Cristian"]
[Black "Hoffmann, Hendrik"]
[Result "1/2-1/2"]
[ECO "A13"]
[WhiteElo "2385"]
[BlackElo "2242"]
[Annotator "NA"]
[PlyCount "108"]
[EventDate "2021.03.27"]
[EventType "team-tourn"]
[EventCountry "NET"]
[SourceTitle "playchess.com"]
[Source "ChessBase"]
[SourceQuality "1"]
[TimeControl "900+5"]

1. Nf3 {[%emt 0:00:00]} d5 {[%emt 0:00:07]} 2. e3 {[%emt 0:00:09]} Nf6 {[%emt 0:00:04]} 3. c4 {[%emt 0:00:10]} c5 {[%emt 0:00:04]} 4. cxd5 {[%emt 0:00:32]} Nxd5 {[%emt 0:00:04]} 5. Be2 {[%emt 0:00:14]} Nc6 {[%emt 0:00:13]} 6. O-O {[%emt 0:00:13]} e6 {[%emt 0:00:22]} 7. a3 {[%emt 0:00:18]} Be7 {[%emt 0:00:08]} 8. Qc2 {[%emt 0:00:09]} O-O {[%emt 0:00:13]} 9. b3 {[%emt 0:00:18]} b6 {[%emt 0:00:14]} 10. Bb2 {[%emt 0:00:10]} Bf6 {[%emt 0:00:17]} 11. d3 {[%emt 0:00:04]} Bb7 {[%emt 0:00:10]} 12. Nbd2 {[%emt 0:00:03]} Bxb2 {[%emt 0:00:19]} 13. Qxb2 {[%emt 0:00:02]} Qf6 {[%emt 0:00:01]} 14. Qxf6 {[%emt 0:00:04]} Nxf6 {[%emt 0:00:03]} 15. Rab1 {[%emt 0:00:32]} Rfd8 {[%emt 0:00:17]} 16. Rfc1 {[%emt 0:01:01]} Rac8 {[%emt 0:00:55]} 17. Rc2 {[%emt 0:01:17]} Kf8 {[%emt 0:00:43]} 18. Nc4 {[%emt 0:00:21]} Nd5 {[%emt 0:01:30]} 19. Rbc1 {[%emt 0:00:39]} f6 {[%emt 0:00:18]} 20. h4 {[%emt 0:01:12]} Ke7 {[%emt 0:01:21]} 21. h5 {[%emt 0:00:20]} g5 {[%emt 0:00:07]} 22. Ne1 {[%emt 0:01:50]} f5 {[%emt 0:00:40]} 23. g3 {[%emt 0:00:20]} Nf6 {[%emt 0:00:27]} 24. f4 {[%emt 0:00:28]} g4 {[%emt 0:00:13]} 25. h6 {[%emt 0:00:05]} Ng8 {[%emt 0:00:28]} 26. Rb2 {[%emt 0:00:37]} Nxh6 {[%emt 0:00:23]} 27. b4 {[%emt 0:00:31]} cxb4 {[%emt 0:00:07]} 28. axb4 {[%emt 0:00:05]} Nf7 {[%emt 0:00:07]} 29. Ra1 {[%emt 0:01:30]} Nd6 {[%emt 0:00:10]} 30. Nd2 {[%emt 0:00:27]} Ra8 {[%emt 0:00:44]} 31. d4 {[%emt 0:00:09]} a5 {[%emt 0:00:11]} 32. bxa5 {[%emt 0:00:10]} Rxa5 {[%emt 0:00:04]} 33. Rab1 {[%emt 0:00:06]} Rd7 {[%emt 0:00:58]} 34. Nd3 {[%emt 0:00:20]} b5 {[%emt 0:01:22]} 35. Nc5 {[%emt 0:00:13]} Rc7 {[%emt 0:00:05]} 36. Bxb5 {[%emt 0:00:07]} Bc8 {[%emt 0:00:44]} 37. Ba4 {[%emt 0:00:53]} Nd8 {[%emt 0:00:35]} 38. Rb6 {[%emt 0:00:06]} N8b7 {[%emt 0:00:13]} 39. Ndb3 {[%emt 0:00:56]} Ra7 {[%emt 0:00:20]} 40. Nxb7 {[%emt 0:00:03]} Bxb7 {[%emt 0:00:11]} 41. Nc5 {[%emt 0:00:04]} Be4 {[%emt 0:00:05]} 42. R1b4 {[%emt 0:00:08]} Bd5 {[%emt 0:00:07]} 43. Bb3 {[%emt 0:00:17]} Bf3 {[%emt 0:01:59]} 44. Ra4 {[%emt 0:00:23]} Rxa4 {[%emt 0:00:09]} 45. Bxa4 {[%emt 0:00:01]} Bd5 {[%emt 0:00:04]} 46. Bb3 {[%emt 0:00:08]} Bxb3 {[%emt 0:00:09]} 47. Rxb3 {[%emt 0:00:03]} Ra7 {[%emt 0:00:02]} 48. Rb2 {[%emt 0:00:05]} Ra3 {[%emt 0:00:04]} 49. Kf2 {[%emt 0:00:03]} h5 {[%emt 0:00:02]} 50. Rc2 {[%emt 0:00:31]} Ra1 {[%emt 0:00:09]} 51. Kg2 {[%emt 0:00:07]} Re1 {[%emt 0:00:04]} 52. Kf2 {[%emt 0:00:02]} Ra1 {[%emt 0:00:07]} 53. Kg2 {[%emt 0:00:04]} Re1 {[%emt 0:00:02]} 54. Kf2 {[%emt 0:00:09]} Ra1 {[%emt 0:00:02]} 1/2-1/2

[Event "European Online Club-ch-D 2021"]
[Site "Online"]
[Date "2021.03.27"]
[Round "1.12"]
[White "Maciol, Ryszard"]
[Black "Georgescu, Tiberiu-Marian"]
[Result "0-1"]
[ECO "D35"]
[WhiteElo "2154"]
[BlackElo "2479"]
[Annotator "ChessBase"]
[PlyCount "60"]
[EventDate "2021.03.27"]
[EventType "team-tourn"]
[EventCountry "NET"]
[SourceTitle "playchess.com"]
[Source "ChessBase"]
[SourceQuality "1"]
[TimeControl "900+5"]

1. d4 {[%emt 0:00:00]} d5 {[%emt 0:00:16]} 2. c4 {[%emt 0:00:05]} e6 {[%emt 0:00:02]} 3. Nc3 {[%emt 0:00:03]} Nf6 {[%emt 0:00:02]} 4. cxd5 {[%emt 0:00:01]} exd5 {[%emt 0:00:02]} 5. Bg5 {[%emt 0:00:02]} c6 {[%emt 0:00:02]} 6. e3 {[%emt 0:00:01]} Be7 {[%emt 0:00:05]} 7. Bd3 {[%emt 0:00:03]} Nbd7 {[%emt 0:00:03]} 8. Nf3 {[%emt 0:00:18]} Nh5 {[%emt 0:00:45]} 9. Bxe7 {[%emt 0:01:55]} Qxe7 {[%emt 0:00:00]} 10. O-O {[%emt 0:00:01]} g6 {[%emt 0:00:17]} 11. Rb1 {[%emt 0:00:37]} O-O {[%emt 0:00:13]} 12. b4 {[%emt 0:00:08]} a6 {[%emt 0:00:25]} 13. Na4 {[%emt 0:00:41]} Ng7 {[%emt 0:00:48]} 14. Qc2 {[%emt 0:00:34]} Ne8 {[%emt 0:04:11]} 15. Nc5 {[%emt 0:02:02]} Nd6 {[%emt 0:00:35]} 16. a4 {[%emt 0:01:16]} Nb6 {[%emt 0:00:58]} 17. Nd2 {[%emt 0:03:39]} Bf5 {[%emt 0:00:44]} 18. Bxf5 {[%emt 0:00:54]} Nxf5 {[%emt 0:00:03]} 19. b5 {[%emt 0:00:47]} cxb5 {[%emt 0:00:03]} 20. axb5 {[%emt 0:00:02]} a5 {[%emt 0:00:02]} 21. Ra1 {[%emt 0:01:25]} Nd6 {[%emt 0:00:07]} 22. Qb3 {[%emt 0:00:19]} Nbc4 {[%emt 0:00:32]} 23. Nxc4 {[%emt 0:00:41]} Nxc4 {[%emt 0:00:00]} 24. Ra2 {[%emt 0:00:24]} b6 {[%emt 0:00:41]} 25. Na4 {[%emt 0:00:05]} Rfc8 {[%emt 0:00:37]} 26. Nc3 {[%emt 0:00:52]} Nxe3 {[%emt 0:01:51]} 27. fxe3 {[%emt 0:00:10]} Qxe3+ {[%emt 0:00:04]} 28. Raf2 {[%emt 0:00:01]} Rxc3 {[%emt 0:00:43]} 29. Qxd5 {[%emt 0:00:02]} Rf8 {[%emt 0:00:03]} 30. h3 {[%emt 0:00:12]} Rc2 {[%emt 0:00:37]} 0-1